Workbook

Sheet Sheet1
B2: Household Monthly Budget
B3: <Date>
D4: Budget | E4: Actual | F4: Variance
B6: Income
B7: Salary 1 (Take Home Pay) | D7: $3,750.00 | E7: $3,750.00 | F7: =D7-E7 -> 0
B8: Salary 2 (Take Home Pay) | D8: 2,750.00 | E8: 2,750.00 | F8: =D8-E8 -> 0
B9: <Other Income> | D9: 0 | E9: 0 | F9: =D9-E9 -> 0
B10: <Other Income> | D10: 0 | E10: 0 | F10: =D10-E10 -> 0
B11: Total Income | D11: =SUM(D7:D10) -> $6,500.00 | E11: =SUM(E7:E10) -> $6,500.00 | F11: =SUM(F7:F10) -> 0
B13: Expenses
B14: Fixed Costs
B15: Mortgage / Rent Expense | D15: $1,000.00 | E15: $1,000.00 | F15: =D15-E15 -> 0
B16: Car / Lease Payment(s) | D16: 850.00 | E16: 850.00 | F16: 0
B17: Loan Payment(s) | D17: 250.00 | E17: 250.00 | F17: 0
B18: Insurance - Car | D18: 100.00 | E18: 100.00 | F18: 0
B19: Insurance - Homeowner's | D19: 75.00 | E19: 75.00 | F19: 0
B20: Insurance - Life | D20: 75.00 | E20: 75.00 | F20: 0
B21: Charitable Contributions | D21: 200.00 | E21: 200.00 | F21: 0
B22: Childcare | C22: Childcare | D22: 1,000.00 | E22: 1,000.00 | F22: 0
B23: <Other Fixed Cost> | D23: 0 | E23: 0 | F23: 0
B24: <Other Fixed Cost> | D24: 0 | E24: 0 | F24: 0
B25: Total Fixed Costs | D25: =SUM(D14:D24) -> $3,550.00 | E25: =SUM(E14:E24) -> $3,550.00 | F25: =SUM(F15:F24) -> 0
B26: Semi Variable Costs
B27: Electric / Gas Expense | D27: $400.00 | E27: $378.00 | F27: =D27-E27 -> $22.00
B28: Telephone Expense | D28: 75.00 | E28: 73.55 | F28: 1.45
B29: Cable / Satellite Television Expense | D29: 100.00 | E29: 103.25 | F29: (3.25)
B30: Internet Expense | D30: 75.00 | E30: 76.99 | F30: (1.99)
B31: Food (Dining Out & Groceries) | D31: 750.00 | E31: 770.56 | F31: (20.56)
B32: Gasoline | D32: 400.00 | E32: 384.00 | F32: 16.00
B33: Pet Supplies | D33: 50.00 | E33: 36.54 | F33: 13.46
B34: Medical / Healthcare | C34: Childcare | D34: 75.00 | E34: 104.23 | F34: (29.23)
B35: Personal Care | D35: 75.00 | E35: 70.59 | F35: 4.41
B36: <Other Semi Variable Costs> | D36: 0 | E36: 0 | F36: 0
B37: <Other Semi Variable Costs> | D37: 0 | E37: 0 | F37: 0
B38: Total Semi Variable Costs | D38: =SUM(D27:D37) -> $2,000.00 | E38: =SUM(E27:E37) -> $1,997.71 | F38: =SUM(F27:F37) -> $2.29
B39: Highly Variable Costs
B40: Entertainment | D40: $150.00 | E40: $204.89 | F40: =D40-E40 -> $(54.89)
B41: Gifts | D41: 50.00 | E41: 42.33 | F41: 7.67
B42: Clothing | C42: Clothing | D42: 150.00 | E42: 175.85 | F42: (25.85)
B43: Miscellaneous | D43: 100.00 | E43: 105.00 | F43: (5.00)
B44: <Other Highly Variable Costs> | D44: 0 | E44: 0 | F44: 0
B45: <Other Highly Variable Costs> | D45: 0 | E45: 0 | F45: 0
B46: Total Highly Variable Costs | D46: =SUM(D40:D45) -> $450.00 | E46: =SUM(E40:E45) -> $528.07 | F46: =SUM(F40:F45) -> $(78.07)
B47: Total Expenses | D47: =D46+D38+D25 -> $6,000.00 | E47: =E46+E38+E25 -> $6,075.78 | F47: =F46+F38+F25 -> $(75.78)
B48: Net Income | D48: =D11-D47 -> $500.00 | E48: =E11-E47 -> $424.22 | F48: =F11+F47 -> $(75.78)
